bitfinex/quotes_SOLUSD_20250719
["timestamp","ask_amount","ask_price","bid_price","bid_amount"]
[1752958668127,26.0,177.98,177.93,0.72]
[1752958668352,26.7,177.98,177.94,5.82207575]
[1752958668668,6.52207575,178.01,177.95,5.82207575]
[1752958668860,6.52207575,178.01,177.96,5.82207575]
[1752958669035,32.52207575,178.01,177.96,5.82207575]
[1752958669234,19.66292134,178.0,177.95,5.82207575]
[1752958669653,6.52207575,177.99,177.93,6.54207575]
[1752958669850,5.82207575,177.98,177.93,6.54207575]
[1752958670050,26.0,177.97,177.93,0.72]
[1752958670244,26.0,177.97,177.94,5.82207575]
[1752958670441,5.82207575,177.95,177.89,0.03]
[1752958670756,5.82207575,177.93,177.89,0.03]
[1752958671136,0.7,177.92,177.89,0.03]
[1752958671334,5.62081951,177.91,177.89,0.03]
[1752958671750,6.32081951,177.91,177.89,0.03]
[1752958671981,5.62081951,177.91,177.89,0.03]
[1752958673388,45.87306478,177.93,177.89,0.03]
[1752958673389,5.62050359,177.92,177.89,0.03]
[1752958673598,5.62050359,177.92,177.91,5.82207575]
[1752958673777,5.61924027,177.96,177.91,6.50207575]
[1752958673975,5.61924027,177.96,177.92,0.68]
[1752958674167,5.61924027,177.96,177.92,5.82207575]
[1752958674368,5.61924027,177.96,177.9,0.68]
[1752958674569,19.66734096,177.96,177.92,5.82207575]
[1752958674885,20.34734096,177.96,177.91,5.82207575]
[1752958675069,19.66734096,177.96,177.93,5.82207575]
[1752958675388,19.66734096,177.96,177.92,5.82207575]
[1752958675777,20.34734096,177.96,177.92,5.82207575]
[1752958676280,19.66734096,177.96,177.89,0.71]
[1752958676486,20.34734096,177.96,177.92,5.82207575]
[1752958676673,20.34734096,177.96,177.89,0.71]
[1752958676869,5.82207575,177.95,177.89,0.03]
[1752958677068,31.82207575,177.93,177.89,0.03]
[1752958677482,0.68,177.92,177.89,0.03]
[1752958677682,5.82207575,177.91,177.89,0.03]
[1752958677889,26.0,177.88,177.87,0.2]
[1752958678208,5.62145145,177.89,177.87,0.2]
[1752958678878,5.62145145,177.89,177.88,5.85207575]
[1752958679494,5.62145145,177.89,177.88,0.03]
[1752958679986,6.12145145,177.89,177.88,0.03]
[1752958680367,6.12145145,177.89,177.88,5.85207575]
[1752958680768,6.12145145,177.89,177.88,0.03]
[1752958681493,5.62145145,177.89,177.88,0.03]
[1752958681695,5.62145145,177.89,177.88,5.85207575]
[1752958682298,14.05262069,177.91,177.88,5.85207575]
[1752958682677,14.05262069,177.91,177.88,0.03]
[1752958683113,6.50207575,177.9,177.88,0.03]
[1752958683295,26.0,177.89,177.88,0.03]
[1752958683485,26.68,177.89,177.88,0.03]
[1752958684372,32.30145145,177.89,177.88,0.03]
[1752958684994,32.80145145,177.89,177.88,0.03]
[1752958685873,38.6235272,177.89,177.86,0.03]
[1752958686199,0.68,177.88,177.86,0.03]
[1752958686495,5.62208354,177.87,177.85,0.2]
[1752958686676,6.50207575,177.86,177.85,1e-08]
[1752958686899,6.50207575,177.86,177.84,1e-08]
[1752958687100,32.50207575,177.85,177.84,1e-08]
[1752958687799,26.68,177.85,177.84,1e-08]
[1752958688304,6.30271577,177.85,177.84,1e-08]
[1752958688723,38.12479152,177.85,177.84,1e-08]
[1752958689221,31.62271577,177.85,177.84,1e-08]
[1752958690334,28.90947549,177.85,177.84,1e-08]
[1752958690493,71.07984376,177.85,177.75,0.68]
[1752958690696,5.82207575,177.79,177.74,5.82207575]
[1752958690923,51.28207575,177.8,177.75,5.82207575]
[1752958691098,46.14,177.8,177.72,0.68]
[1752958691624,5.6246133,177.79,177.76,5.82207575]
[1752958691829,5.1246133,177.79,177.75,5.82207575]
[1752958692332,5.1246133,177.79,177.76,6.50207575]
[1752958692527,5.1246133,177.79,177.76,0.68]
[1752958692821,5.1246133,177.79,177.76,6.50207575]
[1752958693228,19.18614656,177.79,177.73,0.68]
[1752958693736,25.00822231,177.79,177.74,5.82207575]
[1752958694020,25.00822231,177.79,177.73,0.68]
[1752958694226,25.00822231,177.79,177.74,5.82207575]
[1752958694437,6.50207575,177.78,177.73,0.68]
[1752958694633,6.50207575,177.78,177.73,6.50207575]
[1752958694833,0.68,177.78,177.74,5.82207575]
[1752958695032,0.68,177.78,177.72,5.82207575]
[1752958695033,26.0,177.76,177.72,5.82207575]
[1752958695640,5.62587904,177.75,177.69,0.68]
[1752958695841,11.44795479,177.75,177.69,0.68]
[1752958696022,5.82207575,177.74,177.69,6.50207575]
[1752958696223,25.51265239,177.75,177.7,5.82207575]
[1752958696529,26.19265239,177.75,177.7,5.82207575]
[1752958696725,19.69057664,177.75,177.71,6.50207575]
[1752958696911,20.37057664,177.75,177.71,5.82207575]
[1752958697117,26.19265239,177.75,177.68,7.0867]
[1752958697319,26.19265239,177.75,177.7,5.82207575]
[1752958697517,0.68,177.74,177.7,5.82207575]
[1752958697736,5.62651212,177.73,177.7,5.82207575]
[1752958698816,5.62651212,177.73,177.71,5.82207575]
[1752958699017,5.62651212,177.73,177.71,0.68]
[1752958699420,5.62651212,177.73,177.71,6.50207575]
[1752958699815,14.0646976,177.75,177.72,5.82207575]
[1752958699816,5.62587904,177.75,177.72,5.82207575]
[1752958700017,5.62587904,177.75,177.74,5.82207575]
[1752958700412,5.62587904,177.75,177.73,0.68]
[1752958700616,5.62587904,177.75,177.74,5.82207575]
[1752958701238,5.62587904,177.75,177.72,5.82207575]
[1752958701437,5.62587904,177.75,177.72,6.50207575]
[1752958701661,25.51265239,177.75,177.69,0.68]
[1752958701958,5.82207575,177.74,177.69,5.82207575]
[1752958702159,6.50207575,177.74,177.67,0.68]
[1752958702347,6.50207575,177.73,177.68,5.82207575]
[1752958702543,5.82207575,177.71,177.64,0.68]
[1752958702761,5.82207575,177.71,177.66,5.82207575]
[1752958702953,45.62,177.72,177.64,0.68]
[1752958702954,5.82207575,177.69,177.65,0.03]
[1752958703463,5.82207575,177.68,177.65,0.03]
[1752958703985,26.0,177.66,177.65,0.03]
[1752958704260,31.82207575,177.66,177.65,0.03]
[1752958704561,32.49207575,177.66,177.65,0.03]
[1752958704984,38.12080478,177.66,177.65,0.03]
[1752958706172,31.62872903,177.66,177.65,0.03]
[1752958706942,50.568464,177.67,177.65,0.03]
[1752958707147,50.568464,177.67,177.65,5.85207575]
[1752958707771,50.568464,177.67,177.65,0.03]
[1752958708466,50.568464,177.67,177.65,5.85207575]
[1752958708785,26.0,177.69,177.66,6.53207575]
[1752958709085,82.28890446,177.72,177.67,5.82207575]
[1752958709373,65.2039005,177.72,177.67,5.82207575]
[1752958709588,65.2039005,177.72,177.68,5.82207575]
[1752958709589,91.2039005,177.72,177.68,5.82207575]
[1752958709875,97.02597625,177.72,177.67,6.53207575]
[1752958710180,5.82207575,177.71,177.65,0.74]
[1752958710367,5.82207575,177.68,177.65,0.03]
[1752958710563,50.52207575,177.68,177.65,0.03]
[1752958710876,51.19207575,177.68,177.65,0.03]
[1752958711182,5.62841222,177.67,177.65,0.03]
[1752958712569,5.62841222,177.67,177.65,5.85207575]
[1752958712765,6.12872903,177.66,177.65,0.03]
[1752958715361,5.62841222,177.67,177.65,0.03]
[1752958715869,11.45048797,177.67,177.65,0.03]
[1752958716889,5.62841222,177.67,177.65,0.03]
[1752958717503,11.45048797,177.67,177.65,0.03]
[1752958717704,5.62841222,177.67,177.65,0.03]
[1752958717879,11.45048797,177.67,177.65,0.03]
[1752958718083,6.12872903,177.66,177.65,0.03]
[1752958718703,12.62080478,177.66,177.65,0.03]
[1752958719086,10.3917815,177.66,177.65,0.03]
[1752958719287,24.46360408,177.66,177.61,0.03]
[1752958719497,3.59305247,177.62,177.61,0.03]
[1752958719805,73.91305247,177.62,177.55,3.59305247]
[1752958720106,73.91305247,177.62,177.56,3.59305247]
[1752958720107,3.59305247,177.61,177.56,3.59305247]
[1752958720274,5.63063063,177.6,177.57,0.71]
[1752958720480,5.63063063,177.6,177.57,4.30305247]
[1752958720809,5.63063063,177.6,177.57,0.71]
[1752958721194,5.63063063,177.6,177.55,0.71]
[1752958721381,5.63063063,177.6,177.57,5.85816213]
[1752958721793,5.63063063,177.6,177.56,0.71]
[1752958721997,20.3772072,177.6,177.56,5.85816213]
[1752958722202,50.09816213,177.59,177.53,0.71]
[1752958722605,44.24,177.59,177.55,5.85816213]
[1752958723004,44.24,177.59,177.55,6.56816213]
[1752958723294,44.24,177.59,177.56,6.56816213]
[1752958724301,44.24,177.59,177.58,5.85816213]
[1752958724506,44.24,177.59,177.57,0.71]
[1752958724709,44.24,177.59,177.57,6.56816213]
[1752958725699,49.87100244,177.59,177.58,5.85816213]
[1752958725907,49.87100244,177.59,177.57,6.56816213]
[1752958726408,49.87100244,177.59,177.55,0.71]
[1752958726599,49.87100244,177.59,177.58,5.85816213]
[1752958727096,49.87100244,177.59,177.57,5.85816213]
[1752958727715,49.87100244,177.59,177.56,0.71]
[1752958728015,49.87100244,177.59,177.57,5.88816213]
[1752958728234,5.63085446,177.6,177.58,6.56816213]
[1752958728533,49.65036205,177.61,177.59,0.71]
[1752958728834,49.65036205,177.61,177.6,5.85816213]
[1752958730305,26.67,177.65,177.6,6.56816213]
[1752958730507,49.54936275,177.64,177.63,5.85816213]
[1752958730709,49.54936275,177.64,177.61,0.71]
[1752958731014,49.54936275,177.64,177.62,5.85816213]
[1752958731913,5.62936275,177.64,177.62,5.85816213]
[1752958732737,5.62936275,177.64,177.63,5.85816213]
[1752958733128,5.62936275,177.64,177.6,0.69]
[1752958733330,5.62936275,177.64,177.63,5.85816213]
[1752958735615,5.62936275,177.64,177.61,0.69]
[1752958735941,5.62936275,177.64,177.61,6.54816213]
[1752958736440,5.85816213,177.62,177.57,0.03]
[1752958736619,5.85816213,177.6,177.57,0.03]
[1752958736943,43.68,177.59,177.57,0.03]
[1752958737139,44.34,177.59,177.57,0.03]
[1752958737515,5.63126478,177.58,177.57,0.03]
[1752958742944,5.63126478,177.58,177.57,3.62472328]
[1752958743125,14.73387592,177.64,177.57,4.31472328]
[1752958743334,49.08967967,177.63,177.57,4.31472328]
[1752958743535,49.08967967,177.63,177.6,3.59472328]
[1752958744616,63.16387884,177.63,177.6,3.59472328]
[1752958745035,49.08967967,177.63,177.61,3.59472328]
[1752958745254,5.62967967,177.63,177.62,3.59472328]
[1752958746624,5.62967967,177.63,177.62,4.28472328]
[1752958747083,6.12967967,177.63,177.62,4.28472328]
[1752958747852,6.12967967,177.63,177.62,3.59472328]
[1752958748557,6.12967967,177.63,177.61,3.59472328]
[1752958748954,0.66,177.62,177.58,3.59472328]
[1752958749152,0.66,177.61,177.58,3.59472328]
[1752958749556,5.6303136,177.61,177.58,3.59472328]
[1752958749879,6.2903136,177.61,177.58,3.59472328]
[1752958751285,0.66,177.6,177.57,0.03]
[1752958751461,3.59472328,177.58,177.57,0.03]
[1752958751779,46.75472328,177.58,177.57,0.03]
[1752958751961,47.41472328,177.58,177.57,0.03]
[1752958752386,43.16,177.58,177.57,0.03]
[1752958753360,48.79126478,177.58,177.57,0.03]
[1752958754261,52.38598806,177.58,177.57,0.03]
[1752958754599,48.79126478,177.58,177.57,0.03]
[1752958757190,49.45126478,177.58,177.57,0.03]
[1752958758607,49.95126478,177.58,177.57,0.03]
[1752958758794,49.45126478,177.58,177.57,0.03]
[1752958761801,53.04598806,177.58,177.57,0.03]
[1752958762315,49.45126478,177.58,177.57,0.03]
[1752958762688,53.04598806,177.58,177.57,0.03]
[1752958762914,49.45126478,177.58,177.57,0.03]
[1752958763113,53.04598806,177.58,177.57,0.03]
[1752958763300,53.04598806,177.58,177.53,3.62472328]
[1752958763502,3.59472328,177.56,177.53,0.03]
[1752958763804,42.98,177.56,177.53,3.62472328]
[1752958764117,42.98,177.56,177.53,4.33472328]
[1752958764802,5.63221627,177.55,177.53,4.33472328]
[1752958765319,5.63221627,177.55,177.53,0.74]
[1752958765520,5.63221627,177.55,177.53,4.33472328]
[1752958767406,5.63221627,177.55,177.53,3.62472328]
[1752958767792,5.63221627,177.55,177.53,4.33472328]
[1752958768326,5.63221627,177.55,177.53,0.03]
[1752958770810,0.5,177.54,177.53,0.03]
[1752958771011,5.63221627,177.55,177.53,0.03]
[1752958771535,6.29221627,177.55,177.53,3.62472328]
[1752958771838,5.63221627,177.55,177.53,3.62472328]
[1752958773226,5.63221627,177.55,177.54,4.30472328]
[1752958774430,5.63221627,177.55,177.54,0.71]
[1752958774629,19.71053668,177.57,177.53,0.03]
[1752958775032,20.37053668,177.57,177.53,0.03]
[1752958775835,19.71053668,177.57,177.53,4.33472328]
[1752958776045,19.71053668,177.57,177.54,0.71]
[1752958776220,19.71053668,177.57,177.53,4.33472328]
[1752958777038,19.71053668,177.57,177.55,3.59472328]
[1752958777246,19.71053668,177.57,177.53,4.33472328]
[1752958777443,19.71053668,177.57,177.54,0.71]
[1752958778339,19.71053668,177.57,177.54,4.30472328]
[1752958778851,5.63158191,177.57,177.54,4.30472328]
[1752958779155,5.69039836,177.61,177.56,7.18944656]
[1752958779454,5.69039836,177.61,177.6,3.59472328]
[1752958779655,5.69039836,177.61,177.6,4.30472328]
[1752958779965,5.69039836,177.61,177.59,3.59472328]
[1752958780256,5.69039836,177.61,177.53,0.03]
[1752958780257,6.35039836,177.61,177.53,0.03]
[1752958780425,3.59472328,177.59,177.53,0.74]
[1752958780827,3.59472328,177.58,177.53,0.74]
[1752958781052,5.63158191,177.57,177.53,0.74]
[1752958781260,0.66,177.56,177.53,0.03]
[1752958781938,0.66,177.55,177.53,0.03]
[1752958782835,3.59472328,177.56,177.53,0.03]
[1752958783162,5.63221627,177.55,177.53,0.03]
[1752958785131,9.88725679,177.54,177.53,0.03]
[1752958785851,6.29253351,177.54,177.53,0.03]
[1752958786950,9.88725679,177.54,177.53,0.03]
[1752958787149,5.63253351,177.54,177.53,3.62472328]
[1752958787538,5.63253351,177.54,177.53,0.03]
[1752958787740,5.63253351,177.54,177.53,3.62472328]
[1752958788053,5.63253351,177.54,177.53,4.33472328]
[1752958788370,5.63253351,177.54,177.53,0.03]
[1752958788530,5.63253351,177.54,177.53,3.62472328]
[1752958788729,5.63253351,177.54,177.53,4.33472328]
[1752958789132,5.63221627,177.55,177.53,4.33472328]
[1752958789633,0.5,177.54,177.53,4.33472328]
[1752958790368,6.13253351,177.54,177.53,0.03]
[1752958790941,6.79253351,177.54,177.53,0.03]
[1752958793443,6.13253351,177.54,177.53,0.03]
[1752958793848,6.79253351,177.54,177.53,0.03]
[1752958795169,10.38725679,177.54,177.53,0.03]
[1752958795542,10.38725679,177.54,177.51,0.1]
[1752958795747,4.25472328,177.53,177.51,0.1]
[1752958796451,5.63316809,177.52,177.51,0.1]
[1752958797274,9.22789137,177.52,177.51,0.1]
[1752958797854,9.88789137,177.52,177.49,0.03]
[1752958798050,26.0,177.5,177.49,0.03]
[1752958798554,32.29380281,177.5,177.49,0.03]
[1752958798951,66.7577171,177.5,177.43,0.67]
[1752958799159,66.7577171,177.5,177.43,4.26472328]
[1752958799160,3.59472328,177.48,177.43,4.26472328]
[1752958799358,4.25472328,177.48,177.43,4.26472328]
[1752958799576,3.59472328,177.48,177.43,4.26472328]
[1752958799786,0.66,177.47,177.43,4.26472328]
[1752958800293,4.25472328,177.46,177.41,3.59472328]
[1752958800596,5.63570784,177.44,177.41,0.67]
[1752958800757,0.66,177.43,177.39,4.26472328]
[1752958800961,23.31970073,177.44,177.4,4.26472328]
[1752958800962,5.63570784,177.44,177.4,4.26472328]
[1752958801162,5.63570784,177.44,177.41,0.67]
[1752958801690,5.63570784,177.44,177.4,3.59472328]
[1752958802191,5.63570784,177.44,177.4,4.26472328]
[1752958802388,9.23043112,177.44,177.4,0.67]
[1752958802592,9.89043112,177.44,177.4,0.67]
[1752958802776,9.89043112,177.44,177.39,3.59472328]
[1752958802976,9.89043112,177.44,177.39,0.67]
[1752958803182,9.89043112,177.44,177.39,4.26472328]
[1752958803378,9.89043112,177.44,177.4,0.67]
[1752958803683,9.89043112,177.44,177.39,3.59472328]
[1752958803867,0.66,177.43,177.39,3.59472328]
[1752958804071,0.66,177.43,177.4,3.59472328]
[1752958804292,4.25472328,177.42,177.36,0.67]
[1752958804492,4.25472328,177.42,177.37,3.59472328]
[1752958804795,6.29666084,177.41,177.37,3.59472328]
[1752958804993,5.63602547,177.43,177.39,3.59472328]
[1752958805293,5.63602547,177.43,177.4,0.67]
[1752958805495,5.63602547,177.43,177.41,4.26472328]
[1752958806191,31.63579582,177.44,177.42,4.26472328]
[1752958806398,26.0,177.44,177.43,0.67]
[1752958806577,48.55443768,177.48,177.43,4.26472328]
[1752958806776,48.55443768,177.48,177.46,3.59472328]
[1752958806980,5.63316809,177.52,177.47,4.26472328]
[1752958807206,5.63316809,177.52,177.48,0.67]
[1752958807387,5.63316809,177.52,177.49,3.59472328]
[1752958807590,0.5,177.51,177.49,3.59472328]
[1752958807801,30.0,177.5,177.49,3.59472328]
[1752958808408,35.63380281,177.5,177.49,3.59472328]
[1752958808697,6.13351944,177.51,177.49,3.59472328]
[1752958808904,0.5,177.51,177.5,4.26472328]
[1752958809886,19.71194448,177.56,177.5,4.26472328]
[1752958810091,19.71194448,177.56,177.52,3.59472328]
[1752958810506,20.37194448,177.56,177.52,3.59472328]
[1752958811386,6.29189907,177.56,177.52,3.59472328]
[1752958812306,9.22662235,177.56,177.46,26.0]
[1752958812482,5.63253351,177.54,177.47,0.67]
[1752958812680,5.63253351,177.54,177.5,3.59472328]
[1752958812899,0.66,177.53,177.5,3.59472328]
[1752958813087,0.66,177.52,177.49,3.59472328]
[1752958813287,20.37386729,177.54,177.5,3.59472328]
[1752958813484,5.63253351,177.54,177.44,26.0]
[1752958813689,26.5,177.55,177.53,3.59472328]
[1752958813690,0.5,177.55,177.53,3.59472328]
[1752958813889,42.88,177.56,177.53,3.59472328]
[1752958814205,42.88,177.56,177.51,0.67]
[1752958814402,42.88,177.56,177.54,3.59472328]
[1752958814580,48.51198545,177.56,177.53,3.59472328]
[1752958815006,48.51198545,177.56,177.54,3.59472328]
[1752958816107,48.51198545,177.56,177.53,3.59472328]
[1752958816486,49.17198545,177.56,177.53,3.59472328]
[1752958816686,49.17198545,177.56,177.52,4.26472328]
[1752958816887,3.59472328,177.53,177.43,6.4457]
[1752958817090,4.25472328,177.52,177.47,3.59472328]
[1752958817513,4.25472328,177.52,177.46,0.67]
[1752958817514,0.5,177.51,177.48,3.59472328]
[1752958818195,5.63380281,177.5,177.48,3.59472328]
[1752958818396,5.63380281,177.5,177.48,4.26472328]
[1752958818606,6.13357298,177.51,177.48,4.26472328]
[1752958820597,6.13357298,177.51,177.48,3.59472328]
[1752958821496,6.13357298,177.51,177.46,4.26472328]
[1752958821497,0.66,177.5,177.46,4.26472328]
[1752958821901,23.81200985,177.51,177.43,6.4457]
[1752958822100,3.59472328,177.47,177.41,0.67]
[1752958822307,3.59472328,177.45,177.41,0.67]
[1752958822604,6.29570784,177.44,177.4,3.62472328]
[1752958822819,5.63570784,177.44,177.41,0.67]
[1752958823019,5.63570784,177.44,177.41,4.26472328]
[1752958823213,26.0,177.46,177.43,3.59472328]
[1752958823422,26.0,177.46,177.43,4.29472328]
[1752958823737,31.63515915,177.46,177.43,4.29472328]
[1752958825223,31.63515915,177.46,177.43,0.7]
[1752958825620,0.69,177.45,177.41,3.59472328]
[1752958825820,35.22988243,177.46,177.41,4.29472328]
[1752958826010,35.91988243,177.46,177.41,4.29472328]
[1752958826202,32.32515915,177.46,177.42,3.59472328]
[1752958826403,32.32515915,177.46,177.42,4.29472328]
[1752958826618,31.63515915,177.46,177.42,4.29472328]
[1752958827531,35.22988243,177.46,177.42,4.29472328]
[1752958827711,35.91988243,177.46,177.42,3.59472328]
[1752958828224,35.91988243,177.46,177.4,0.73]
[1752958828423,35.91988243,177.46,177.42,3.59472328]
[1752958828619,0.69,177.45,177.42,3.59472328]
[1752958828815,0.69,177.45,177.41,3.59472328]
[1752958829020,0.69,177.44,177.4,3.62472328]
[1752958829319,0.69,177.43,177.4,0.03]
[1752958829520,5.63634314,177.42,177.4,0.03]
[1752958830036,5.63593089,177.44,177.41,4.29472328]
[1752958830246,5.63593089,177.44,177.42,3.59472328]
[1752958830612,74.45537331,177.46,177.42,4.29472328]
[1752958831133,57.57510074,177.5,177.45,3.59472328]
[1752958831329,5.63412023,177.49,177.46,3.59472328]
[1752958831638,5.63356067,177.51,177.48,3.59472328]
[1752958831811,5.63356067,177.51,177.5,3.59472328]
[1752958832515,5.63356067,177.51,177.49,3.59472328]
[1752958833415,5.63285078,177.53,177.49,3.59472328]
[1752958833626,20.40497774,177.53,177.49,3.59472328]
[1752958834037,63.20497774,177.53,177.49,3.59472328]
[1752958835440,48.43285078,177.53,177.51,3.59472328]
[1752958835627,5.63285078,177.53,177.52,3.59472328]
[1752958836029,5.63285078,177.53,177.52,4.29472328]
[1752958837363,5.63285078,177.53,177.52,3.59472328]
[1752958837776,19.71202613,177.56,177.52,3.59472328]
[1752958837973,19.71202613,177.56,177.53,3.59472328]
[1752958838176,19.71202613,177.56,177.52,3.59472328]
[1752958838177,20.40202613,177.56,177.52,3.59472328]
[1752958839069,0.69,177.55,177.52,3.59472328]
[1752958840079,5.63189907,177.56,177.53,3.59472328]
[1752958840390,5.63189907,177.56,177.52,0.7]
[1752958840570,6.32189907,177.56,177.52,3.59472328]
[1752958840754,5.63189907,177.56,177.53,3.59472328]
[1752958840951,5.63189907,177.56,177.54,3.59472328]
[1752958841898,5.63189907,177.56,177.45,16.78468397]
[1752958842087,0.69,177.55,177.52,3.59472328]
[1752958842584,23.30637004,177.56,177.51,3.59472328]
[1752958842788,26.0,177.53,177.47,0.7]
[1752958842956,5.63316809,177.52,177.49,3.59472328]
[1752958843160,6.32316809,177.52,177.49,3.59472328]
[1752958843369,6.32316809,177.52,177.48,3.59472328]
[1752958843670,0.69,177.51,177.48,3.59472328]
[1752958844762,19.71608832,177.52,177.48,3.59472328]
[1752958844959,19.71608832,177.52,177.48,4.29472328]
[1752958845364,5.63316809,177.52,177.49,3.59472328]
[1752958845561,5.63316809,177.52,177.49,4.29472328]
[1752958845785,5.63316809,177.52,177.5,3.59472328]
[1752958845978,5.63316809,177.52,177.51,3.59472328]
[1752958846174,5.63316809,177.52,177.51,4.29472328]
[1752958847395,5.63253351,177.54,177.51,4.29472328]
[1752958847568,5.63253351,177.54,177.52,3.59472328]
[1752958849384,5.63253351,177.54,177.52,4.29472328]
[1752958849905,0.5,177.53,177.51,3.59472328]
[1752958850690,42.7,177.52,177.48,3.59472328]
[1752958850894,42.7,177.52,177.49,3.59472328]
[1752958851093,43.39,177.52,177.48,3.59472328]
[1752958851668,9.91820871,177.51,177.46,3.59472328]
[1752958852000,0.69,177.5,177.46,3.59472328]
[1752958852239,42.68,177.49,177.46,3.59472328]
[1752958853304,42.68,177.49,177.47,3.59472328]
[1752958853470,42.68,177.49,177.47,4.25472328]
[1752958853670,5.63443768,177.48,177.47,4.25472328]
[1752958853872,5.63443768,177.48,177.47,3.59472328]
[1752958854173,5.63443768,177.48,177.46,3.59472328]
[1752958854786,5.63443768,177.48,177.46,4.25472328]
[1752958854986,5.63443768,177.48,177.47,4.25472328]
[1752958856300,5.63443768,177.48,177.47,3.59472328]
[1752958857415,5.63443768,177.48,177.46,3.59472328]
[1752958857617,5.63443768,177.48,177.45,3.59472328]
[1752958857618,6.32443768,177.48,177.45,3.59472328]
[1752958858513,6.32443768,177.48,177.43,0.69]
[1752958858712,6.32443768,177.48,177.45,3.59472328]
[1752958858899,3.59472328,177.47,177.44,0.66]
[1752958859229,3.59472328,177.47,177.43,3.62472328]
[1752958859230,0.69,177.47,177.43,3.62472328]
[1752958859415,0.69,177.47,177.43,0.03]
[1752958859748,5.63443768,177.48,177.44,3.59472328]
[1752958859904,42.66,177.47,177.46,3.59472328]
[1752958860091,5.63443768,177.48,177.46,3.59472328]
[1752958860295,5.63443768,177.48,177.46,4.25472328]
[1752958860688,26.0,177.52,177.47,4.25472328]
[1752958860890,5.63285078,177.53,177.51,3.59472328]
[1752958861089,48.27221627,177.55,177.52,3.59472328]
[1752958861314,48.27221627,177.55,177.53,3.59472328]
[1752958861520,48.27221627,177.55,177.54,3.59472328]
[1752958861723,5.63221627,177.55,177.54,3.59472328]
[1752958863116,5.69189907,177.56,177.54,5.85917688]
[1752958863940,0.69,177.55,177.5,0.66]
[1752958864112,0.69,177.55,177.47,8.0098]
[1752958864113,20.46164676,177.56,177.52,5.85917688]
[1752958864947,5.69189907,177.56,177.53,5.85917688]
[1752958865105,5.69189907,177.56,177.54,5.85917688]
[1752958866048,0.5,177.55,177.54,5.85917688]
[1752958866652,6.13221627,177.55,177.54,5.85917688]
[1752958867289,6.13221627,177.55,177.54,6.51917688]
[1752958867815,6.13221627,177.55,177.54,5.85917688]
[1752958870430,0.5,177.55,177.54,5.85917688]
[1752958870635,0.5,177.55,177.54,6.51917688]
[1752958873260,0.06,177.56,177.54,6.51917688]
[1752958873424,0.06,177.56,177.5,26.0]
[1752958873425,0.06,177.56,177.55,6.51917688]
[1752958875037,0.06,177.56,177.55,5.85917688]
[1752958875750,0.06,177.56,177.55,6.51917688]
[1752958884264,0.06,177.56,177.55,12.15139315]
[1752958884945,0.06,177.56,177.55,9.88546723]
[1752958886568,0.06,177.56,177.55,13.47871819]
[1752958886737,0.06,177.56,177.55,21.24141819]
[1752958887073,0.06,177.57,177.55,21.80463981]
[1752958887240,0.06,177.57,177.56,7.87650192]
[1752958887867,0.06,177.57,177.56,13.50840099]
[1752958888755,0.18120857,177.57,177.56,13.50840099]
[1752958892093,0.18120857,177.57,177.53,0.56328507]
[1752958892248,0.18120857,177.57,177.56,3.59325096]
[1752958892553,0.18120857,177.57,177.56,4.28325096]
[1752958893257,0.18120857,177.57,177.56,33.87650192]
[1752958894486,0.10206082,177.59,177.57,16.78468397]
[1752958894649,0.17943284,177.6,177.58,48.10007743]
[1752958894850,0.17943284,177.6,177.59,3.59325096]
[1752958895071,0.17943284,177.6,177.59,4.28325096]
[1752958896164,0.17943284,177.6,177.59,21.06793493]
[1752958896877,0.17943284,177.6,177.59,26.69888261]
[1752958897279,0.1641569,177.64,177.6,16.78468397]
[1752958897448,0.1641569,177.64,177.61,72.55628232]
[1752958897950,0.1641569,177.64,177.62,16.78468397]
[1752958898174,0.1641569,177.64,177.63,3.59325096]
[1752958898452,0.1635186,177.65,177.63,8.43946988]
[1752958898673,0.1635186,177.65,177.64,55.88586467]
[1752958899053,0.1635186,177.65,177.64,52.29261371]
[1752958899252,0.1635186,177.65,177.64,69.07729768]
[1752958899474,0.06,177.67,177.65,16.78468397]
[1752958899678,0.06,177.67,177.66,7.18650192]
[1752958900083,0.06,177.67,177.66,7.87650192]
[1752958900375,0.2,177.71,177.66,26.21498589]